[Event "Swiss National League-A 2024"]
[Site "Luzern"]
[Date "2024.10.13"]
[Round "9.6"]
[White "Brunner, Nicolas"]
[Black "Vogt, Lothar"]
[Result "1/2-1/2"]
[ECO "E74"]
[WhiteElo "2427"]
[BlackElo "2257"]
[Annotator "TA"]
[PlyCount "141"]
[EventDate "2023.10.03"]
[EventType "team-tourn"]
[EventCountry "SUI"]
[SourceTitle "playchess.com"]
[Source "ChessBase"]
[SourceQuality "1"]
[TimeControl "40/8400+30:20/3000+30:900+30"]

{[%evp 29,141,38,89,68,120,117,121,52,133,85,80,55,134,138,154,153,174,68,92,77,146,83,153,104,196,154,237,176,157,175,206,146,209,163,201,190,224,234,234,234,234,223,223,223,234,234,234,234,234,234,234,234,234,104,234,107,234,145,234,226,219,131,218,209,235,194,267,255,264,275,301,297,307,284,271,269,269,258,259,165,259,208,339,292,284,140,171,96,178,172,120,94,58,103,70,63,54,54,54,54,54,0,0,0,0,0,0,0,0,0,0,12,0,0]} 1. d4 {[%emt 0:40:03]} Nf6 {[%emt 0:40:03]} 2. c4 {[%emt 0:00:04]} g6 {[%emt 0:00:09]} 3. Nc3 {[%emt 0:00:04]} Bg7 {[%emt 0:00:09]} 4. e4 {[%emt 0:00:03]} d6 {[%emt 0:00:06]} 5. Be2 {[%emt 0:00:05]} O-O {[%emt 0:00:10]} 6. Be3 {[%emt 0:00:06]} c5 {[%emt 0:05:12]} 7. d5 {[%emt 0:00:08]} a6 {[%emt 0:02:09]} 8. a4 {[%emt 0:02:31]} Qa5 {[%emt 0:01:37]} 9. Bd2 {[%emt 0:08:14]} e6 {[%emt 0:01:03]} 10. Nf3 {[%emt 0:02:28]} exd5 {[%emt 0:00:29]} 11. exd5 {[%emt 0:02:57]} Bg4 {[%emt 0:04:06]} 12. O-O {[%emt 0:02:16]} Qc7 {[%emt 0:03:09]} 13. h3 {[%emt 0:01:50]} Bxf3 {[%emt 0:02:59]} 14. Bxf3 {[%emt 0:00:05]} Nbd7 {[%emt 0:00:47]} 15. Qc2 {[%emt 0:00:41]} Rfe8 {[%emt 0:03:48]} (15... Ne8 $14) 16. g4 $16 {[%emt 0:08:00][%cal Bg2g4,Bg4g5][%mdl 32] En nu zou g5 winnen. EV=21.15. Goes to g5 (dbg)). E74: Konings-Indisch: Averbakh Variant: 6...c5.} Re7 {[%emt 0:04:06] Fout (0.5)} (16... h6 $14) 17. g5 {[%emt 0:07:30] OK} Ne8 {[%emt 0:02:35] OK} 18. Bg4 $146 {[%emt 0:06:40] Fout (0.7)} (18. Rae1 $16 Ne5 19. Be2) ({Predecessor:} 18. Rae1 Rxe1 19. Rxe1 Bd4 20. Kg2 Ng7 21. Bg4 f5 22. Bd1 Re8 23. Rxe8+ Nxe8 24. Ne2 {1-0 Schulenberg,H (2189)-Urpilainen,E (2153) MT-Esko sf03 email 2017 [4]}) 18... Be5 {[%emt 0:15:14] Zwart is zwak op de lichte velden. Fout (0.8)} (18... Bd4 $14) {Wit zou moeten proberen} 19. f4 {[%emt 0:05:11] Fout (0.5)} (19. Rae1) 19... Bd4+ {[%emt 0:00:16] Beste} 20. Kg2 {[%emt 0:00:21] Dreigt te winnen met Rfe1.} Ng7 {[%emt 0:10:34] [#] Fout (0.8)} (20... h5 $1 $14) 21. Rae1 $1 $36 {[%emt 0:12:32][%mdl 2048] Wit drukt behoorlijk. OK} Rae8 {[%emt 0:00:58]} 22. Rxe7 {[%emt 0:03:23] Beste (Gemakkelijk)} Rxe7 {[%emt 0:00:03]} 23. b3 {[%emt 0:01:16] Fout (1.1)} (23. f5 $18) 23... f5 {[%emt 0:11:25]} 24. Bf3 {[%emt 0:01:24] OK} Ne8 {[%emt 0:00:39] Fout (0.7)} (24... Be3) 25. Re1 {[%emt 0:12:03] Fout (0.6)} (25. h4) {Zwart zou moeten proberen} 25... Nf8 {[%emt 0:00:44] Fout (0.7)} (25... Rxe1 26. Bxe1 Qd8) 26. Qb1 {[%emt 0:03:22] Fout (0.5)} (26. Ne2) 26... Kf7 {[%emt 0:06:06] Fout (0.9)} (26... h6 $16) 27. h4 {[%emt 0:00:38][%cal Bh3h4,Bh4h5][%mdl 32] EV=15.91. Goes to h6 (dbg))} Ng7 {[%emt 0:01:13] Fout (0.8)} (27... Rxe1 $16 28. Qxe1 Qe7) 28. Qd3 {[%emt 0:04:04]} Rxe1 {[%emt 0:05:48] OK} 29. Bxe1 {[%emt 0:00:07]} Qe7 {[%emt 0:00:21]} 30. Bd2 {[%emt 0:00:29] OK} Ne8 {[%emt 0:00:17] Fout (0.6)} (30... Bxc3 $16 31. Qxc3 (31. Bxc3 Nd7 $18) 31... Nd7) 31. h5 $18 {[%emt 0:02:03] OK} b6 {[%emt 0:03:49] Beste} 32. Ne2 {[%emt 0:00:37]} Bh8 {[%emt 0:00:45]} 33. a5 {[%emt 0:01:53] Beste (Gemakkelijk)} bxa5 {[%emt 0:04:32] OK} 34. Bxa5 {[%emt 0:00:53]} Nd7 {[%emt 0:02:35]} 35. Kh3 {[%emt 0:06:44]} Kg8 {[%emt 0:01:14]} 36. Bd2 {[%emt 0:01:11]} Ng7 {[%emt 0:02:07]} 37. Ng3 {[%emt 0:01:41] OK} Qf7 {[%emt 0:02:37]} 38. Qe2 {[%emt 0:01:33]} Qe8 {[%emt 0:00:42]} 39. Qd1 {[%emt 0:02:25] [#] h6 zou dodelijk zijn. OK} Qe7 {[%emt 0:05:30]} 40. Qb1 {[%emt 0:07:28] OK} Ne8 {[%emt 0:02:26] OK} 41. Qe1 {[%emt 0:09:57] Fout (1.3)} (41. Qa2 $18) 41... Kf7 {[%emt 0:01:57] Fout (1.3)} (41... Qxe1 $16 42. Bxe1 Bb2) 42. Kg2 {[%emt 0:04:33] Fout (1.3)} (42. Qc1 $18) 42... Bd4 {[%emt 0:01:09] is een betere verdediging. Fout (1.3)} (42... Qxe1 $16 43. Bxe1 Bb2) 43. Kf1 {[%emt 0:01:47] Onnauwkeurig} Ng7 {[%emt 0:02:23] Fout (0.9)} (43... Qxe1+ $16 44. Kxe1 Bb2) 44. Qxe7+ {[%emt 0:00:50]} Kxe7 {[%emt 0:00:03]} 45. Ke2 {[%emt 0:00:24] Fout (0.9)} (45. h6 $18) 45... Nf8 {[%emt 0:02:14] was nodig. Fout (0.9)} (45... gxh5 $16 46. Nxh5 Nxh5 47. Bxh5 Nf8) 46. h6 {[%emt 0:02:50] OK} Ne8 {[%emt 0:00:09] OK} 47. Kd3 {[%emt 0:01:05]} Bh8 {[%emt 0:02:26] was hoogst noodzakelijk. Fout (0.7)} (47... Kd7 48. Be1 Kc8) 48. Bd1 {[%emt 0:02:14]} Nd7 {[%emt 0:02:04]} 49. Ba5 {[%emt 0:03:01] OK} Bb2 {[%emt 0:01:01]} 50. Ne2 {[%emt 0:00:34] OK} Nf8 {[%emt 0:02:15]} 51. Kc2 {[%emt 0:01:48] OK} Bh8 {[%emt 0:00:43]} 52. Kd2 {[%emt 0:01:37]} Nd7 {[%emt 0:01:18] OK} 53. Nc3 {[%emt 0:00:09]} Bd4 {[%emt 0:01:22]} 54. Na4 {[%emt 0:00:45] Onnauwkeurig} Bh8 {[%emt 0:01:05] gaat door met vechten. Fout (0.9)} (54... Kf8 55. Bd8 Kf7) 55. Kd3 {[%emt 0:00:39] OK} Nb8 {[%emt 0:08:20] pakt misschien beter uit. Fout (1.3)} (55... Ba1 56. Bf3 Bh8) 56. b4 {[%emt 0:01:00] OK} cxb4 {[%emt 0:00:27] OK} 57. Bxb4 {[%emt 0:00:02] en Wit blijft duidelijk aan de top. Fout (1.4)} (57. Nb6 $18) 57... Nd7 $16 {[%emt 0:03:56] Beste} {Beter is} 58. c5 {[%emt 0:01:30] Fout (0.8)} (58. Ba3 $18) 58... dxc5 {[%emt 0:01:57] OK} 59. Nxc5 {[%emt 0:00:11]} Nxc5+ {[%emt 0:00:51]} 60. Bxc5+ {[%emt 0:00:04][%mdl 4096] Eindspel. KBB-KBN} Nd6 {[%emt 0:00:19] Beste} 61. Ba4 {[%emt 0:18:29] OK} Bb2 {[%emt 0:16:56] Voorkomt Ba3. Beste} 62. Kc2 {[%emt 0:00:22] Afleidend Bc1. Wit is actiever.} Ba1 {[%emt 0:03:40]} 63. Kb3 {[%emt 0:05:25]} Bh8 $1 {[%emt 0:02:21] Sterk} 64. Bc6 {[%emt 0:05:46] OK} Ba1 {[%emt 0:01:49] Beste (Gemakkelijk)} {Wit moet overwegen} 65. Bb7 {[%emt 0:11:47] Fout (0.5)} (65. Kc2 $14) 65... Bd4 $1 $11 {[%emt 0:00:00] Sterk. De stelling is in evenwicht.} 66. Bxd4 {[%emt 0:00:28] Beste (Gemakkelijk)} Nxb7 {[%emt 0:00:00] Beste (Gemakkelijk)} 67. Kc4 {[%emt 0:00:48]} Na5+ {[%emt 0:00:00]} 68. Kb4 {[%emt 0:00:07] Wit dreigt Bc5+ en mat. OK} Nb7 {[%emt 0:00:00] met als doel voor ...Kd6. Beste (Gemakkelijk)} 69. Kc4 {[%emt 0:00:47]} Na5+ {[%emt 0:00:00] OK} 70. Kb4 {[%emt 0:00:21] Dreigt mat met Bc5+.} Nb7 {[%emt 0:00:00] Sterke dreiging met ...Kd6.} 71. Kc4 {[%emt 0:02:34] Zwart kan nog net een remise eruit slepen.   Blunder waarde: Wit=0.33/Zwart=0.38.  Fout:        	Wit=11     	Zwart=15     Onnauwkeurig:    	Wit=2      	---        OK:         	Wit=17     	Zwart=9      Beste:        	Wit=3      	Zwart=8      Sterk:        	---       	Zwart=2} 1/2-1/2

[Event "Swiss National League-A 2024"]
[Site "Luzern"]
[Date "2024.10.13"]
[Round "9.7"]
[White "Fischer, Daniel"]
[Black "Haag, Gregor"]
[Result "1/2-1/2"]
[ECO "B52"]
[WhiteElo "2362"]
[BlackElo "2335"]
[Annotator "RC"]
[PlyCount "63"]
[EventDate "2023.10.03"]
[EventType "team-tourn"]
[EventCountry "SUI"]
[SourceTitle "playchess.com"]
[Source "ChessBase"]
[SourceQuality "1"]
[TimeControl "40/8400+30:20/3000+30:900+30"]

1. e4 {[%emt 0:40:04]} c5 {[%emt 0:40:06]} 2. Nf3 {[%emt 0:00:04]} d6 {[%emt 0:00:06]} 3. Bb5+ {[%emt 0:00:20]} Bd7 {[%emt 0:00:10]} 4. Bxd7+ {[%emt 0:00:09]} Nxd7 {[%emt 0:00:04]} 5. O-O {[%emt 0:01:19]} Ngf6 {[%emt 0:00:09]} 6. Qe2 {[%emt 0:00:40]} e6 {[%emt 0:00:19]} 7. b3 {[%emt 0:01:13]} Be7 {[%emt 0:10:08]} 8. Bb2 {[%emt 0:00:06]} Qc7 {[%emt 0:01:02]} 9. c4 {[%emt 0:04:44]} Ne5 {[%emt 0:16:43]} 10. d4 {[%emt 0:05:46]} Nxf3+ {[%emt 0:09:29]} 11. Qxf3 {[%emt 0:00:05]} cxd4 {[%emt 0:01:06]} 12. Bxd4 {[%emt 0:00:14]} Qc6 {[%emt 0:05:22]} 13. Nc3 {[%emt 0:03:07]} O-O {[%emt 0:02:15]} 14. Rac1 {[%emt 0:02:24]} a6 {[%emt 0:06:09]} 15. Rfd1 {[%emt 0:13:52]} Rac8 {[%emt 0:11:23]} 16. h3 {[%emt 0:02:31]} Rfd8 {[%emt 0:06:23]} 17. Qe3 {[%emt 0:11:27]} Nd7 {[%emt 0:11:49]} 18. a4 {[%emt 0:31:54]} Bf6 {[%emt 0:07:51]} 19. Bxf6 {[%emt 0:07:30]} Nxf6 {[%emt 0:00:25]} 20. Qd4 {[%emt 0:06:13]} Qc5 {[%emt 0:04:16]} 21. Rd3 {[%emt 0:01:11]} Qxd4 {[%emt 0:05:28]} 22. Rxd4 {[%emt 0:00:05]} Kf8 {[%emt 0:00:14]} 23. Rcd1 {[%emt 0:01:09]} Ke7 {[%emt 0:00:22]} 24. f3 {[%emt 0:00:58]} g5 {[%emt 0:02:40]} 25. Kf2 {[%emt 0:01:33]} h5 {[%emt 0:01:08]} 26. R4d3 {[%emt 0:04:05]} h4 {[%emt 0:01:15]} 27. Ne2 {[%emt 0:01:46]} Nh5 {[%emt 0:01:51]} 28. R1d2 {[%emt 0:01:06]} Rc5 {[%emt 0:01:34]} 29. Rd1 {[%emt 0:02:25]} Rcc8 {[%emt 0:00:27]} 30. R1d2 {[%emt 0:00:13]} Rc5 {[%emt 0:00:21]} 31. Rd1 {[%emt 0:00:04]} Rcc8 {[%emt 0:01:00]} 32. R1d2 {[%emt 0:00:14]} 1/2-1/2

[Event "Swiss National League-A 2024"]
[Site "Luzern"]
[Date "2024.10.13"]
[Round "9.8"]
[White "Breder, Dennis"]
[Black "Gruenenwald, Joerg"]
[Result "1-0"]
[ECO "B52"]
[WhiteElo "2404"]
[BlackElo "2288"]
[Annotator "TA"]
[PlyCount "77"]
[EventDate "2023.10.03"]
[EventType "team-tourn"]
[EventCountry "SUI"]
[SourceTitle "playchess.com"]
[Source "ChessBase"]
[SourceQuality "1"]
[TimeControl "40/8400+30:20/3000+30:900+30"]

{[%evp 9,77,11,0,0,16,9,38,31,37,31,42,50,31,33,79,69,75,80,90,85,176,242,251,221,216,221,204,193,374,159,164,171,166,170,173,170,175,164,166,164,163,100,106,89,185,159,147,140,147,135,152,138,146,128,133,133,129,8,551,532,545,316,361,366,315,311,636,625,934,925]} 1. e4 {[%emt 0:40:02]} c5 {[%emt 0:40:08]} 2. Nf3 {[%emt 0:00:04]} d6 {[%emt 0:00:12]} 3. Bb5+ {[%emt 0:00:04]} Bd7 {[%emt 0:00:14]} 4. c4 {[%emt 0:00:05]} Nf6 {[%emt 0:01:21]} 5. Nc3 {[%emt 0:00:07]} a6 {[%emt 0:04:16]} 6. Bxd7+ {[%emt 0:00:08]} Nbxd7 {[%emt 0:00:22]} 7. O-O {[%emt 0:00:12]} Ne5 {[%emt 0:05:39]} 8. Rb1 {[%emt 0:01:12] White is slightly better.} e6 {[%emt 0:14:31]} 9. b4 {[%emt 0:04:02]} b6 {[%emt 0:05:49]} 10. bxc5 {[%emt 0:09:40] And now Nxe5 would win.} Nxf3+ {[%emt 0:08:07]} 11. Qxf3 {[%emt 0:00:27]} dxc5 {[%emt 0:02:38]} (11... bxc5 $14 12. e5 Nd7) 12. e5 $16 {[%emt 0:05:38]} Nd7 {[%emt 0:00:10]} 13. Qg3 $36 {[%emt 0:05:12][%mdl 2048] Keeping Black busy. White is much more active.} g6 {[%emt 0:07:34]} 14. Ne4 {[%emt 0:06:39]} Bg7 {[%emt 0:17:09]} (14... Be7 $16 {keeps fighting.}) 15. Nd6+ $18 {[%emt 0:08:14]} Kf8 {[%emt 0:00:11] [#]} 16. Bb2 {[%emt 0:11:22] Strongly threatening Qf3.} Rb8 {[%emt 0:10:51]} 17. d4 {[%emt 0:09:07]} cxd4 {[%emt 0:00:24]} 18. Bxd4 {[%emt 0:00:06][%cal Oc4c5] Threatens to win with c5!} h5 $2 {[%emt 0:05:32]} (18... Kg8 19. Qf4 Qe7) 19. Rb3 {[%emt 0:02:38]} (19. Qf4 $18 {[%csl Gd6][%cal Rf4f7]} Qe7 20. c5) 19... h4 $16 {[%emt 0:05:05]} 20. Qf4 {[%emt 0:01:02][%csl Gd6][%cal Rf4f7]} Qe7 {[%emt 0:00:09]} 21. Rf3 {[%emt 0:00:50][%cal Rf4f7]} Kg8 {[%emt 0:00:15]} 22. Qxf7+ {[%emt 0:19:44]} (22. Nxf7 Rh5 (22... Rf8 23. Nxh8 Rxf4 24. Nxg6 $16) 23. g4 hxg3 24. fxg3 (24. hxg3 $2 Rf5 $19) (24. Qxg3 Rf8 $17) 24... Rf8 $14 (24... Rf5 25. Nh6+ Bxh6 26. Qxh6 $16)) 22... Qxf7 {[%emt 0:00:10]} 23. Rxf7 {[%emt 0:05:20]} (23. Nxf7 $6 Rh5 $14) 23... Bxe5 {[%emt 0:02:30]} 24. Bxe5 {[%emt 0:00:08]} Nxe5 {[%emt 0:00:10]} 25. Rf6 {[%emt 0:00:03]} (25. Re7 $18) 25... Kg7 {[%emt 0:01:57]} 26. Rxe6 {[%emt 0:00:10]} Nd3 {[%emt 0:00:32]} (26... Rhd8 $16 {was called for.}) 27. Rd1 {[%emt 0:01:16]} Nc5 {[%emt 0:00:09]} 28. Re5 {[%emt 0:00:49]} Rhf8 {[%emt 0:01:22]} 29. Rdd5 {[%emt 0:07:20]} Rbd8 {[%emt 0:01:56] [#]} 30. f4 $1 {[%emt 0:03:46][%cal Bf2f4,Bf4f5][%mdl 544]} Rd7 {[%emt 0:04:28]} (30... Kg8 31. g3) 31. f5 {[%emt 0:02:50]} Rfd8 {[%emt 0:01:26]} 32. Ne8+ {[%emt 0:00:49]} Kf7 {[%emt 0:00:13] [#]} 33. Nc7 {[%emt 0:01:15]} (33. fxg6+ $1 $16 {[%mdl 512]} Kxg6 34. Rg5+ Kf7 35. Nc7 Rxd5 36. Nxd5 (36. cxd5 Rd7 $11) (36. Rxd5 Rc8 $11)) 33... Nd3 $2 {[%emt 0:03:26][%mdl 8192] Loses the game.} (33... Kf6 $11 34. Ne8+ Kf7) 34. fxg6+ $18 {[%emt 0:00:55]} (34. Nxa6 Nxe5 35. Rxe5 Kf6 $19) 34... Kxg6 {[%emt 0:00:01]} 35. Re6+ {[%emt 0:01:20]} (35. Nxa6 $2 Nxe5 36. Rxe5 Rf8 $19) 35... Kf7 {[%emt 0:01:38]} 36. Rf5+ {[%emt 0:00:09]} (36. Rxb6 Rxd5 37. cxd5 (37. Nxd5 Re8 $18) 37... a5 $18) 36... Kg8 {[%emt 0:01:08]} 37. Nd5 {[%emt 0:00:08]} ({Weaker is} 37. Nxa6 Rd4 $11) 37... Rd6 $2 {[%emt 0:00:59]} (37... Rf7) 38. Nf6+ {[%emt 0:01:02]} Kf7 {[%emt 0:03:17]} 39. Rxd6 {[%emt 0:00:57] Weighted Error Value: White=0.29 (precise) /Black=0.48.  Loses game:     	---       	Black=1      Missed win:     	White=1     	---        Mistake:       	White=2     	Black=5      Inaccurate:     	White=1     	Black=2      OK:         	White=16    	Black=11     Best:        	White=3     	Black=4} 1-0

[Event "Swiss National League-A 2024"]
[Site "Luzern"]
[Date "2024.10.13"]
[Round "9.9"]
[White "Hommeles, Theo"]
[Black "Klauser, Markus"]
[Result "1/2-1/2"]
[ECO "C92"]
[WhiteElo "2396"]
[BlackElo "2324"]
[Annotator "TA"]
[PlyCount "59"]
[EventDate "2023.10.03"]
[EventType "team-tourn"]
[EventCountry "SUI"]
[SourceTitle "playchess.com"]
[Source "ChessBase"]
[SourceQuality "1"]
[TimeControl "40/8400+30:20/3000+30:900+30"]

{[%evp 23,59,5,29,-11,-14,-16,-18,-14,0,-5,-1,-14,-33,-17,-25,-41,44,-55,0,-11,0,-28,-24,-33,-41,-41,-28,-53,-52,-35,-10,-3,-4,-2,0,0,5,0]} 1. e4 {[%emt 0:40:04]} e5 {[%emt 0:40:39]} 2. Nf3 {[%emt 0:00:07]} Nc6 {[%emt 0:00:03]} 3. Bb5 {[%emt 0:00:09][%cal Bf1b5,Bb5a4,Ba4b3,Bb3c2,Bc2b1][%mdl 32]} a6 {[%emt 0:00:08]} 4. Ba4 {[%emt 0:00:06]} Nf6 {[%emt 0:00:05]} 5. O-O {[%emt 0:00:05]} Be7 {[%emt 0:00:05]} 6. Re1 {[%emt 0:00:04]} b5 {[%emt 0:00:05]} 7. Bb3 {[%emt 0:00:03]} d6 {[%emt 0:00:07]} 8. c3 {[%emt 0:00:09]} O-O {[%emt 0:00:08]} 9. h3 {[%emt 0:00:15]} Bb7 {[%emt 0:00:15]} 10. d4 {[%emt 0:03:58]} Re8 {[%emt 0:01:07]} 11. Nbd2 {[%emt 0:00:53]} Bf8 {[%emt 0:00:26]} 12. Bc2 {[%emt 0:01:43]} g6 {[%emt 0:05:43]} 13. a4 {[%emt 0:06:48]} exd4 {[%emt 0:03:45]} 14. cxd4 {[%emt 0:03:42]} Nb4 {[%emt 0:00:34]} 15. Bb1 {[%emt 0:00:14]} bxa4 {[%emt 0:00:50]} 16. Rxa4 {[%emt 0:07:39]} a5 {[%emt 0:00:15]} 17. e5 {[%emt 0:07:14]} dxe5 {[%emt 0:04:34]} 18. dxe5 {[%emt 0:00:18]} Nd7 {[%emt 0:01:51]} 19. Be4 $1 {[%emt 0:08:54]} Bxe4 {[%emt 0:04:02]} ({Black should play} 19... c6 $1 $15 20. Nc4 Nc5 21. Qxd8 Raxd8 22. Rxa5 Nxe4 23. Rxe4 c5) 20. Rxe4 {[%emt 0:00:13]} (20. Nxe4 $14 Bg7 (20... Nxe5 21. Nxe5 Rxe5 22. Qxd8 $16) 21. Bg5) 20... Nc5 {[%emt 0:09:11]} (20... Bg7 $5) 21. Rd4 {[%emt 0:00:11]} Qb8 {[%emt 0:02:07]} 22. Ra3 {[%emt 0:02:13]} (22. Ne4 $5 Nxe4 (22... Nxa4 23. Nf6+ Kg7 24. Bh6+ Kh8 25. Rh4 $18) 23. Rxe4 $11) 22... Qb5 {[%emt 0:03:31]} 23. Ne4 {[%emt 0:04:40]} Nxe4 {[%emt 0:03:38]} 24. Rxe4 {[%emt 0:00:16]} Red8 {[%emt 0:06:48]} 25. Rd4 {[%emt 0:10:56]} Nc6 {[%emt 0:13:05][%csl LRa3,LRd4,LRe5]} 26. Rb3 {[%emt 0:01:25]} Rxd4 {[%emt 0:05:17]} (26... Qa4 $5 27. Rdd3 Rab8 $15) 27. Nxd4 {[%emt 0:00:27] The position is equal.} Qd5 {[%emt 0:01:00]} (27... Qxe5 $2 {is the wrong capture.} 28. Nxc6 Qe8 29. Rc3 $18) 28. Qf3 {[%emt 0:04:31]} Qxf3 {[%emt 0:01:06]} 29. Nxf3 {[%emt 0:00:07]} Bg7 {[%emt 0:06:07]} 30. Bf4 {[%emt 0:00:38] Weighted Error Value: White=0.23 (precise) /Black=0.12 (very precise) .  Mistake:       	White=1     	Black=1      Inaccurate:     	White=1     	Black=1      OK:         	White=1     	Black=7      Best:        	White=2     	Black=1      Strong:       	White=1     	---} 1/2-1/2

[Event "Swiss National League-A 2024"]
[Site "Luzern"]
[Date "2024.10.13"]
[Round "9.10"]
[White "Mattenberger, Matthias"]
[Black "Kuehn, Peter"]
[Result "1/2-1/2"]
[ECO "D06"]
[WhiteElo "2238"]
[BlackElo "2333"]
[Annotator "RC"]
[PlyCount "60"]
[EventDate "2023.10.03"]
[EventType "team-tourn"]
[EventCountry "SUI"]
[SourceTitle "playchess.com"]
[Source "ChessBase"]
[SourceQuality "1"]
[TimeControl "40/8400+30:20/3000+30:900+30"]

1. d4 {[%emt 0:40:08]} d5 {[%emt 0:40:07]} 2. c4 {[%emt 0:00:06]} c5 {[%emt 0:00:03]} 3. cxd5 {[%emt 0:00:19]} Qxd5 {[%emt 0:00:06]} 4. Nf3 {[%emt 0:00:09]} cxd4 {[%emt 0:00:05]} 5. Nc3 {[%emt 0:00:06]} Qa5 {[%emt 0:00:03]} 6. Nxd4 {[%emt 0:00:10]} Nf6 {[%emt 0:00:05]} 7. g3 {[%emt 0:04:57]} e5 {[%emt 0:00:08]} 8. Nb3 {[%emt 0:00:21]} Qc7 {[%emt 0:00:06]} 9. Bg2 {[%emt 0:00:13]} Bb4 {[%emt 0:00:05]} 10. O-O {[%emt 0:01:36]} Bxc3 {[%emt 0:01:06]} 11. bxc3 {[%emt 0:00:04]} O-O {[%emt 0:00:06]} 12. Qc2 {[%emt 0:05:22]} Be6 {[%emt 0:03:38]} 13. Ba3 {[%emt 0:05:27]} Rd8 {[%emt 0:02:12]} 14. Rfd1 {[%emt 0:09:43]} Nc6 {[%emt 0:07:51]} 15. c4 {[%emt 0:07:56]} Rxd1+ {[%emt 0:08:59]} 16. Rxd1 {[%emt 0:00:14]} Rd8 {[%emt 0:00:04]} 17. Rxd8+ {[%emt 0:07:11]} Nxd8 {[%emt 0:15:49]} 18. c5 {[%emt 0:14:18]} Bd5 {[%emt 0:07:04]} 19. e4 {[%emt 0:12:46]} Be6 {[%emt 0:02:37]} 20. Bf1 {[%emt 0:04:55]} Nc6 {[%emt 0:09:55]} 21. f3 {[%emt 0:02:05]} a6 {[%emt 0:05:17]} 22. Bc1 {[%emt 0:06:43]} Nb4 {[%emt 0:07:54]} 23. Qf2 {[%emt 0:01:20]} Qd7 {[%emt 0:04:04]} 24. Qd2 {[%emt 0:06:08]} Nxa2 {[%emt 0:03:40]} 25. Qxa2 {[%emt 0:02:01]} Qd1 {[%emt 0:00:21]} 26. c6 {[%emt 0:03:12]} bxc6 {[%emt 0:04:12]} 27. Qxa6 {[%emt 0:01:15]} h6 {[%emt 0:00:26]} 28. Qxc6 {[%emt 0:01:41]} Qxb3 {[%emt 0:09:04]} 29. Be2 {[%emt 0:01:24]} Nd7 {[%emt 0:01:18]} 30. Qd6 {[%emt 0:03:37]} Qc2 {[%emt 0:02:51]} 1/2-1/2